[Event "MČR v rapid šachu družstev 2019"]
[Site "Teplice, Czech Republic"]
[Date "2019.09.15"]
[Round "1.11"]
[White "Srba, Stanislav"]
[Black "Vrbata, Zbynek"]
[Result "0-1"]
[TimeControl "15 min. + 5s"]
[WhiteElo "1835"]
[BlackElo "2376"]

1. d4 {[%clk 00:15:08]} {[%emt 00:00:01]} Nf6 {[%clk 00:15:07]} {[%emt
00:00:03]} 2. c4 {[%clk 00:15:12]} {[%emt 00:00:02]} g6 {[%clk 00:15:11]}
{[%emt 00:00:01]} 3. Nc3 {[%clk 00:15:13]} {[%emt 00:00:04]} Bg7 {[%clk
00:15:14]} {[%emt 00:00:01]} 4. g3 {[%clk 00:15:15]} {[%emt 00:00:04]} O-O
{[%clk 00:15:17]} {[%emt 00:00:02]} 5. Bg2 {[%clk 00:15:18]} {[%emt 00:00:01]}
d6 {[%clk 00:15:18]} {[%emt 00:00:04]} 6. e4 {[%clk 00:15:18]} {[%emt
00:00:05]} c6 {[%clk 00:15:21]} {[%emt 00:00:02]} 7. Nge2 {[%clk 00:15:15]}
{[%emt 00:00:09]} Nbd7 {[%clk 00:15:07]} {[%emt 00:00:20]} 8. O-O {[%clk
00:15:01]} {[%emt 00:00:19]} e5 {[%clk 00:15:02]} {[%emt 00:00:09]} 9. Be3
{[%clk 00:14:33]} {[%emt 00:00:33]} Re8 {[%clk 00:14:49]} {[%emt 00:00:17]} 10.
Qc2 {[%clk 00:13:56]} {[%emt 00:00:43]} Ng4 {[%clk 00:14:32]} {[%emt 00:00:21]}
11. Rab1 {[%clk 00:11:54]} {[%emt 00:02:07]} Nxe3 {[%clk 00:14:06]} {[%emt
00:00:31]} 12. fxe3 {[%clk 00:11:58]} {[%emt 00:00:01]} Bh6 {[%clk 00:13:22]}
{[%emt 00:00:48]} 13. Qd3 {[%clk 00:10:35]} {[%emt 00:01:29]} Qb6 {[%clk
00:11:08]} {[%emt 00:02:19]} 14. b4 {[%clk 00:09:35]} {[%emt 00:01:06]} exd4
{[%clk 00:11:03]} {[%emt 00:00:10]} 15. exd4 {[%clk 00:07:12]} {[%emt
00:02:28]} Ne5 {[%clk 00:10:58]} {[%emt 00:00:09]} 16. Qd1 {[%clk 00:05:41]}
{[%emt 00:01:38]} Nxc4 {[%clk 00:10:48]} {[%emt 00:00:15]} 17. Qb3 {[%clk
00:05:41]} {[%emt 00:00:04]} d5 {[%clk 00:10:51]} {[%emt 00:00:01]} 18. exd5
{[%clk 00:05:12]} {[%emt 00:00:35]} Nd2 {[%clk 00:10:50]} {[%emt 00:00:05]} 19.
Qa4 {[%clk 00:03:06]} {[%emt 00:02:12]} Nxb1 {[%clk 00:10:41]} {[%emt
00:00:14]} 20. Rxb1 {[%clk 00:03:09]} {[%emt 00:00:02]} Bf5 {[%clk 00:10:11]}
{[%emt 00:00:35]} 21. Rb2 {[%clk 00:01:17]} {[%emt 00:01:57]} Be3+ {[%clk
00:09:38]} {[%emt 00:00:38]} 22. Kf1 {[%clk 00:00:46]} {[%emt 00:00:37]} Rac8
{[%clk 00:08:59]} {[%emt 00:00:44]} 23. dxc6 {[%clk 00:00:10]} {[%emt
00:00:41]} bxc6 {[%clk 00:08:58]} {[%emt 00:00:05]} 24. d5 {[%clk 00:00:12]}
{[%emt 00:00:04]} Bd3 {[%clk 00:07:23]} {[%emt 00:01:39]} 25. Nd1 {[%clk
00:00:09]} {[%emt 00:00:10]} cxd5 {[%clk 00:06:53]} {[%emt 00:00:34]} 26. Bxd5
{[%clk 00:00:12]} {[%emt 00:00:02]} Qf6+ {[%clk 00:06:10]} {[%emt 00:00:48]} 27.
Kg2 {[%clk 00:00:08]} {[%emt 00:00:09]} Bc1 {[%clk 00:05:56]} {[%emt 00:00:18]}
28. Rb3 {[%emt 00:00:09]} Rxe2+ {[%emt 00:00:10]} 0-1

[Event "MČR v rapid šachu družstev 2019"]
[Site "Teplice, Czech Republic"]
[Date "2019.09.15"]
[Round "1.12"]
[White "Kuba, Jindrich"]
[Black "Lorencova, Vera"]
[Result "1-0"]
[TimeControl "15 min. + 5s"]
[WhiteElo "2229"]
[BlackElo "1873"]

1. e4 {[%clk 00:15:08]} e5 {[%clk 00:15:04]} {[%emt 00:00:07]} 2. Nf3 {[%clk
00:15:11]} {[%emt 00:00:02]} Nf6 {[%clk 00:15:08]} {[%emt 00:00:01]} 3. Nc3
{[%clk 00:15:14]} {[%emt 00:00:02]} Nc6 {[%clk 00:15:09]} {[%emt 00:00:03]} 4.
Bb5 {[%clk 00:15:16]} {[%emt 00:00:03]} Bb4 {[%clk 00:15:08]} {[%emt 00:00:06]}
5. O-O {[%clk 00:15:09]} {[%emt 00:00:12]} d6 {[%clk 00:15:01]} {[%emt
00:00:12]} 6. h3 {[%clk 00:15:10]} {[%emt 00:00:05]} Bxc3 {[%clk 00:14:53]}
{[%emt 00:00:12]} 7. bxc3 {[%clk 00:15:12]} {[%emt 00:00:02]} Nxe4 {[%clk
00:14:54]} {[%emt 00:00:04]} 8. Re1 {[%clk 00:15:01]} {[%emt 00:00:16]} Nf6
{[%clk 00:14:55]} {[%emt 00:00:04]} 9. d4 {[%clk 00:15:04]} {[%emt 00:00:03]}
Bd7 {[%clk 00:12:25]} {[%emt 00:02:35]} 10. dxe5 {[%clk 00:14:56]} {[%emt
00:00:13]} dxe5 {[%clk 00:12:13]} {[%emt 00:00:16]} 11. Nxe5 {[%clk 00:13:45]}
{[%emt 00:01:16]} O-O {[%clk 00:11:42]} {[%emt 00:00:36]} 12. Nxd7 {[%clk
00:13:30]} {[%emt 00:00:20]} Nxd7 {[%clk 00:10:57]} {[%emt 00:00:50]} 13. Bxc6
{[%clk 00:13:08]} {[%emt 00:00:27]} bxc6 {[%clk 00:11:01]} {[%emt 00:00:01]} 14.
Qf3 {[%clk 00:13:12]} {[%emt 00:00:01]} Re8 {[%clk 00:09:39]} {[%emt 00:01:26]}
15. Be3 {[%clk 00:12:31]} {[%emt 00:00:46]} Ne5 {[%clk 00:09:02]} {[%emt
00:00:42]} 16. Qg3 {[%clk 00:12:28]} {[%emt 00:00:08]} Qd5 {[%clk 00:05:21]}
{[%emt 00:03:47]} 17. Bd4 {[%clk 00:11:03]} {[%emt 00:01:29]} Ng6 {[%clk
00:04:42]} {[%emt 00:00:45]} 18. Qxc7 {[%clk 00:08:13]} {[%emt 00:02:55]} Nh4
{[%clk 00:02:00]} {[%emt 00:02:47]} 19. Qg3 {[%clk 00:08:07]} {[%emt 00:00:11]}
Nf5 {[%clk 00:02:03]} {[%emt 00:00:02]} 20. Qf4 {[%clk 00:06:18]} {[%emt
00:01:54]} Nxd4 {[%clk 00:02:02]} {[%emt 00:00:06]} 21. Qxd4 {[%clk 00:06:11]}
{[%emt 00:00:12]} Rxe1+ {[%clk 00:01:32]} {[%emt 00:00:35]} 22. Rxe1 {[%clk
00:06:15]} {[%emt 00:00:02]} Qxa2 {[%clk 00:01:34]} {[%emt 00:00:03]} 23. Qe4
{[%clk 00:05:35]} {[%emt 00:00:45]} h6 {[%clk 00:00:58]} {[%emt 00:00:41]} 24.
Qxc6 {[%clk 00:05:37]} {[%emt 00:00:03]} Rb8 {[%clk 00:00:41]} {[%emt
00:00:21]} 25. Re8+ {[%clk 00:04:59]} {[%emt 00:00:43]} Rxe8 {[%clk 00:00:44]}
{[%emt 00:00:03]} 26. Qxe8+ {[%clk 00:05:02]} {[%emt 00:00:02]} Kh7 {[%clk
00:00:48]} {[%emt 00:00:01]} 27. Qe4+ {[%clk 00:05:06]} {[%emt 00:00:01]} Kg8
{[%clk 00:00:48]} {[%emt 00:00:05]} 28. c4 {[%clk 00:04:59]} {[%emt 00:00:11]}
Qa1+ {[%clk 00:00:37]} {[%emt 00:00:16]} 29. Kh2 {[%clk 00:05:01]} {[%emt
00:00:03]} Qf1 {[%clk 00:00:37]} {[%emt 00:00:05]} 30. Qe8+ {[%clk 00:04:30]}
{[%emt 00:00:37]} Kh7 {[%clk 00:00:40]} {[%emt 00:00:02]} 31. Qxf7 {[%clk
00:04:33]} {[%emt 00:00:01]} Qe2 {[%clk 00:00:30]} {[%emt 00:00:15]} 32. Qf5+
{[%clk 00:04:15]} {[%emt 00:00:24]} Kg8 {[%clk 00:00:31]} {[%emt 00:00:04]} 33.
c5 {[%clk 00:03:18]} {[%emt 00:01:02]} Qc4 {[%clk 00:00:17]} {[%emt 00:00:19]}
34. Qe5 {[%clk 00:02:39]} {[%emt 00:00:45]} Qxc2 {[%clk 00:00:12]} {[%emt
00:00:10]} 35. Qd6 {[%clk 00:02:18]} {[%emt 00:00:26]} a5 {[%clk 00:00:15]}
{[%emt 00:00:02]} 36. c6 {[%clk 00:02:22]} a4 {[%clk 00:00:14]} {[%emt
00:00:06]} 37. c7 {[%clk 00:02:25]} {[%emt 00:00:01]} Qc1 {[%clk 00:00:10]}
{[%emt 00:00:10]} 38. Qd8+ {[%clk 00:02:26]} {[%emt 00:00:04]} Kh7 {[%emt
00:00:03]} 39. c8=Q {[%clk 00:02:23]} {[%emt 00:00:06]} Qf4+ {[%clk 00:00:17]}
{[%emt 00:00:02]} 40. Kg1 {[%clk 00:02:27]} {[%emt 00:00:01]} 1-0

[Event "MČR v rapid šachu družstev 2019"]
[Site "Teplice, Czech Republic"]
[Date "2019.09.15"]
[Round "1.13"]
[White "Jirovsky, Milos"]
[Black "Mach, Petr"]
[Result "1-0"]
[TimeControl "15 min. + 5s"]
[WhiteElo "2477"]
[BlackElo "1800"]

1. Nf3 {[%clk 00:15:09]} c5 {[%clk 00:15:05]} {[%emt 00:00:05]} 2. c4 {[%clk
00:15:12]} {[%emt 00:00:01]} Nc6 {[%clk 00:15:05]} {[%emt 00:00:05]} 3. Nc3
{[%clk 00:15:15]} {[%emt 00:00:02]} g6 {[%clk 00:14:34]} {[%emt 00:00:37]} 4.
g3 {[%clk 00:15:18]} {[%emt 00:00:02]} Bg7 {[%clk 00:14:39]} {[%emt 00:00:01]}
5. Bg2 {[%clk 00:15:21]} d6 {[%clk 00:14:33]} {[%emt 00:00:12]} 6. O-O {[%clk
00:15:14]} {[%emt 00:00:11]} e5 {[%clk 00:14:36]} {[%emt 00:00:02]} 7. d3
{[%clk 00:15:00]} {[%emt 00:00:18]} Nge7 {[%clk 00:14:39]} {[%emt 00:00:03]} 8.
Ne1 {[%clk 00:15:03]} {[%emt 00:00:02]} O-O {[%clk 00:14:38]} {[%emt 00:00:05]}
9. Nc2 {[%clk 00:15:07]} {[%emt 00:00:01]} Be6 {[%clk 00:14:17]} {[%emt
00:00:27]} 10. Ne3 {[%clk 00:15:04]} {[%emt 00:00:07]} Qd7 {[%clk 00:12:37]}
{[%emt 00:01:45]} 11. Rb1 {[%clk 00:14:51]} {[%emt 00:00:19]} Rab8 {[%clk
00:11:50]} {[%emt 00:00:52]} 12. Ned5 {[%clk 00:14:22]} {[%emt 00:00:33]} Bh3
{[%clk 00:10:14]} {[%emt 00:01:42]} 13. Bg5 {[%clk 00:11:08]} {[%emt 00:03:18]}
Bxg2 {[%clk 00:09:19]} {[%emt 00:01:00]} 14. Kxg2 {[%clk 00:09:54]} {[%emt
00:01:19]} f6 {[%clk 00:08:54]} {[%emt 00:00:31]} 15. Bd2 {[%clk 00:09:58]}
{[%emt 00:00:01]} Nxd5 {[%clk 00:08:43]} {[%emt 00:00:16]} 16. Nxd5 {[%clk
00:08:34]} {[%emt 00:01:29]} Ne7 {[%clk 00:08:42]} {[%emt 00:00:07]} 17. Nxe7+
{[%clk 00:07:41]} {[%emt 00:00:58]} Qxe7 {[%clk 00:08:45]} {[%emt 00:00:01]} 18.
b4 {[%clk 00:07:41]} {[%emt 00:00:05]} b6 {[%clk 00:08:45]} {[%emt 00:00:06]}
19. Qa4 {[%clk 00:07:10]} {[%emt 00:00:36]} f5 {[%clk 00:08:09]} {[%emt
00:00:40]} 20. Qc6 {[%clk 00:06:57]} {[%emt 00:00:17]} f4 {[%clk 00:05:49]}
{[%emt 00:02:26]} 21. f3 {[%clk 00:06:33]} {[%emt 00:00:29]} fxg3 {[%clk
00:05:10]} {[%emt 00:00:44]} 22. hxg3 {[%clk 00:06:36]} {[%emt 00:00:02]} Rfd8
{[%clk 00:04:00]} {[%emt 00:01:15]} 23. Rh1 {[%clk 00:05:42]} {[%emt 00:00:58]}
h5 {[%clk 00:03:24]} {[%emt 00:00:40]} 24. Qe4 {[%clk 00:05:33]} {[%emt
00:00:14]} Qe6 {[%clk 00:02:51]} {[%emt 00:00:38]} 25. bxc5 {[%clk 00:04:28]}
{[%emt 00:01:10]} dxc5 {[%clk 00:02:45]} {[%emt 00:00:12]} 26. Be3 {[%clk
00:04:28]} {[%emt 00:00:04]} Rbc8 {[%clk 00:01:50]} {[%emt 00:01:00]} 27. a4
{[%clk 00:04:16]} {[%emt 00:00:18]} Qc6 {[%clk 00:01:49]} {[%emt 00:00:06]} 28.
a5 {[%clk 00:03:13]} {[%emt 00:01:08]} Qxe4 {[%clk 00:01:36]} {[%emt 00:00:18]}
29. dxe4 {[%clk 00:03:16]} {[%emt 00:00:01]} Rc6 {[%clk 00:01:25]} {[%emt
00:00:15]} 30. axb6 {[%clk 00:03:17]} {[%emt 00:00:05]} axb6 {[%clk 00:01:21]}
{[%emt 00:00:09]} 31. Rhd1 {[%clk 00:03:10]} {[%emt 00:00:12]} Rcd6 {[%clk
00:01:11]} {[%emt 00:00:16]} 32. Rd5 {[%clk 00:03:10]} {[%emt 00:00:04]} Rxd5
{[%clk 00:00:46]} {[%emt 00:00:31]} 33. exd5 {[%clk 00:03:11]} {[%emt
00:00:03]} Rd6 {[%clk 00:00:46]} {[%emt 00:00:05]} 34. Bg5 {[%clk 00:03:14]}
{[%emt 00:00:02]} Bf6 {[%clk 00:00:48]} {[%emt 00:00:03]} 35. Bd2 {[%clk
00:02:59]} {[%emt 00:00:19]} Kf7 {[%clk 00:00:42]} {[%emt 00:00:12]} 36. e4
{[%clk 00:03:03]} {[%emt 00:00:01]} g5 {[%clk 00:00:37]} {[%emt 00:00:10]} 37.
Kh3 {[%clk 00:02:53]} {[%emt 00:00:15]} Kg6 {[%clk 00:00:38]} {[%emt 00:00:04]}
38. Ra1 {[%clk 00:02:56]} {[%emt 00:00:02]} Be7 {[%clk 00:00:30]} {[%emt
00:00:13]} 39. Ra7 {[%clk 00:02:55]} {[%emt 00:00:05]} Bf6 {[%clk 00:00:33]}
{[%emt 00:00:02]} 40. Rb7 {[%clk 00:02:58]} {[%emt 00:00:01]} Bd8 {[%clk
00:00:34]} {[%emt 00:00:05]} 41. Bc3 {[%clk 00:02:57]} {[%emt 00:00:06]} Bf6
{[%clk 00:00:38]} {[%emt 00:00:01]} 42. Rc7 {[%clk 00:02:58]} {[%emt 00:00:04]}
Bd8 {[%clk 00:00:35]} {[%emt 00:00:08]} 43. Rb7 {[%clk 00:02:48]} {[%emt
00:00:15]} Bf6 {[%clk 00:00:39]} {[%emt 00:00:01]} 44. Rb8 {[%clk 00:02:49]}
{[%emt 00:00:03]} Kh6 {[%clk 00:00:31]} {[%emt 00:00:13]} 45. Re8 {[%clk
00:02:48]} {[%emt 00:00:06]} Kg6 {[%clk 00:00:13]} {[%emt 00:00:23]} 46. Bxe5
{[%clk 00:02:48]} {[%emt 00:00:04]} Bxe5 {[%clk 00:00:17]} {[%emt 00:00:01]} 47.
Rxe5 {[%clk 00:02:52]} {[%emt 00:00:01]} Kf6 {[%clk 00:00:22]} 48. f4 gxf4
{[%clk 00:00:16]} 49. gxf4 {[%clk 00:02:53]} {[%emt 00:00:01]} Kg6 {[%clk
00:00:18]} {[%emt 00:00:03]} 50. Rg5+ {[%clk 00:02:56]} {[%emt 00:00:02]} Kh6
{[%clk 00:00:22]} {[%emt 00:00:01]} 51. e5 {[%clk 00:02:59]} {[%emt 00:00:01]}
Rd8 {[%clk 00:00:25]} {[%emt 00:00:02]} 52. Kh4 {[%clk 00:03:03]} Rf8 {[%clk
00:00:27]} {[%emt 00:00:04]} 53. f5 {[%clk 00:03:05]} {[%emt 00:00:03]} b5
{[%clk 00:00:27]} {[%emt 00:00:06]} 54. Rxh5+ {[%clk 00:03:02]} {[%emt
00:00:08]} Kg7 {[%clk 00:00:31]} 55. Rg5+ {[%clk 00:03:02]} {[%emt 00:00:05]}
Kh6 {[%clk 00:00:36]} {[%emt 00:00:01]} 56. Rh5+ {[%clk 00:02:59]} {[%emt
00:00:07]} Kg7 {[%clk 00:00:40]} {[%emt 00:00:01]} 57. f6+ {[%clk 00:03:04]}
Kg6 {[%clk 00:00:44]} 58. Rg5+ {[%clk 00:03:08]} Kh6 {[%clk 00:00:49]} 59. cxb5
{[%clk 00:03:09]} {[%emt 00:00:03]} c4 {[%clk 00:00:53]} 60. Rg3 {[%clk
00:03:12]} {[%emt 00:00:02]} Rb8 {[%clk 00:00:46]} {[%emt 00:00:12]} 61. f7
{[%clk 00:03:15]} {[%emt 00:00:02]} c3 {[%clk 00:00:46]} {[%emt 00:00:05]} 62.
Rxc3 {[%clk 00:03:16]} {[%emt 00:00:05]} Kg7 {[%clk 00:00:49]} {[%emt
00:00:02]} 63. Rf3 {[%clk 00:03:19]} 1-0

[Event "MČR v rapid šachu družstev 2019"]
[Site "Teplice, Czech Republic"]
[Date "2019.09.15"]
[Round "1.14"]
[White "Kovar, Vojtech"]
[Black "Sokolov, Alexander"]
[Result "0-1"]
[TimeControl "15 min. + 5s"]
[WhiteElo "2238"]
[BlackElo "2384"]

1. d4 {[%clk 00:15:07]} {[%emt 00:00:02]} Nf6 {[%clk 00:15:08]} {[%emt
00:00:02]} 2. c4 {[%clk 00:15:08]} {[%emt 00:00:04]} g6 {[%clk 00:15:11]}
{[%emt 00:00:02]} 3. g3 {[%clk 00:15:10]} {[%emt 00:00:04]} Bg7 {[%clk
00:15:14]} {[%emt 00:00:01]} 4. Bg2 {[%clk 00:15:14]} {[%emt 00:00:01]} O-O
{[%clk 00:15:16]} {[%emt 00:00:03]} 5. Nc3 {[%clk 00:15:17]} {[%emt 00:00:01]}
d6 {[%clk 00:15:18]} {[%emt 00:00:03]} 6. Nf3 {[%clk 00:15:15]} {[%emt
00:00:08]} Nbd7 {[%clk 00:15:20]} {[%emt 00:00:03]} 7. O-O {[%clk 00:15:09]}
{[%emt 00:00:11]} e5 {[%clk 00:15:21]} {[%emt 00:00:03]} 8. h3 {[%clk
00:15:07]} {[%emt 00:00:08]} Re8 {[%clk 00:15:19]} {[%emt 00:00:07]} 9. e4
{[%clk 00:15:10]} {[%emt 00:00:03]} a5 {[%clk 00:15:10]} {[%emt 00:00:14]} 10.
d5 {[%clk 00:15:01]} {[%emt 00:00:14]} Nc5 {[%clk 00:15:06]} {[%emt 00:00:08]}
11. Re1 {[%clk 00:14:41]} {[%emt 00:00:26]} Bd7 {[%clk 00:14:43]} {[%emt
00:00:28]} 12. b3 {[%clk 00:14:32]} {[%emt 00:00:14]} c6 {[%clk 00:14:33]}
{[%emt 00:00:15]} 13. Rb1 {[%clk 00:14:26]} {[%emt 00:00:11]} cxd5 {[%clk
00:14:30]} {[%emt 00:00:08]} 14. cxd5 {[%clk 00:14:09]} {[%emt 00:00:22]} b5
{[%clk 00:14:31]} {[%emt 00:00:04]} 15. b4 {[%clk 00:13:54]} {[%emt 00:00:20]}
axb4 {[%clk 00:13:31]} {[%emt 00:01:04]} 16. Rxb4 {[%clk 00:13:58]} {[%emt
00:00:02]} Na6 {[%clk 00:13:19]} {[%emt 00:00:17]} 17. Rb2 {[%clk 00:13:28]}
{[%emt 00:00:35]} b4 {[%clk 00:12:06]} {[%emt 00:01:18]} 18. Nb1 {[%clk
00:13:31]} {[%emt 00:00:01]} Qc8 {[%clk 00:11:39]} {[%emt 00:00:32]} 19. Kh2
{[%clk 00:13:01]} {[%emt 00:00:35]} Nc5 {[%clk 00:11:29]} {[%emt 00:00:15]} 20.
Rxb4 {[%clk 00:12:08]} {[%emt 00:00:59]} Rxa2 {[%clk 00:11:30]} {[%emt
00:00:03]} 21. Nc3 {[%clk 00:08:35]} {[%emt 00:03:38]} Rxf2 {[%clk 00:10:50]}
{[%emt 00:00:45]} 22. Be3 {[%clk 00:08:38]} {[%emt 00:00:02]} Rxg2+ {[%clk
00:10:36]} {[%emt 00:00:20]} 23. Kxg2 {[%clk 00:08:41]} {[%emt 00:00:02]} Bxh3+
{[%clk 00:10:38]} {[%emt 00:00:03]} 24. Kg1 {[%clk 00:08:29]} {[%emt 00:00:17]}
Bg4 {[%clk 00:08:39]} {[%emt 00:02:04]} 25. Bf2 {[%clk 00:05:53]} {[%emt
00:02:41]} Na6 {[%clk 00:07:54]} {[%emt 00:00:50]} 26. Rb3 {[%clk 00:05:39]}
{[%emt 00:00:18]} Qc4 {[%clk 00:07:55]} {[%emt 00:00:03]} 27. Ra3 {[%clk
00:05:15]} {[%emt 00:00:30]} Nc5 {[%clk 00:07:53]} {[%emt 00:00:06]} 28. Kg2
{[%clk 00:04:15]} {[%emt 00:01:05]} Nd3 {[%clk 00:04:08]} {[%emt 00:03:50]} 29.
Re2 {[%clk 00:01:12]} {[%emt 00:03:08]} Nxf2 {[%clk 00:04:09]} {[%emt
00:00:04]} 30. Rxf2 {[%clk 00:01:15]} {[%emt 00:00:02]} Nxe4 {[%clk 00:03:09]}
{[%emt 00:01:05]} 31. Nxe4 {[%clk 00:01:18]} {[%emt 00:00:02]} Qxe4 {[%clk
00:03:13]} {[%emt 00:00:02]} 32. Ra4 {[%clk 00:01:22]} Qf5 {[%clk 00:03:04]}
{[%emt 00:00:13]} 33. Qe1 {[%clk 00:00:27]} {[%emt 00:01:00]} Bxf3+ {[%clk
00:02:57]} {[%emt 00:00:13]} 34. Rxf3 {[%clk 00:00:31]} {[%emt 00:00:01]} Qc2+
{[%clk 00:03:00]} {[%emt 00:00:01]} 0-1

[Event "MČR v rapid šachu družstev 2019"]
[Site "Teplice, Czech Republic"]
[Date "2019.09.15"]
[Round "1.15"]
[White "Dolezal, Radoslav"]
[Black "Popper, Tomas"]
[Result "1-0"]
[TimeControl "15 min. + 5s"]
[WhiteElo "2363"]
[BlackElo "2073"]

1. d4 {[%emt 00:02:24]} Nf6 {[%emt 00:00:05]} 2. Bg5 {[%emt 00:00:03]} g6
{[%emt 00:00:04]} 3. Bxf6 {[%emt 00:00:05]} exf6 {[%emt 00:00:02]} 4. e3 {[%emt
00:00:18]} Bg7 {[%emt 00:00:03]} 5. c4 {[%emt 00:00:06]} d5 {[%emt 00:00:07]} 6.
cxd5 {[%emt 00:00:05]} Qxd5 {[%emt 00:00:02]} 7. Nc3 {[%emt 00:00:02]} Qd8
{[%emt 00:00:01]} 8. Bc4 {[%emt 00:00:15]} O-O {[%emt 00:00:04]} 9. Nge2 {[%emt
00:00:09]} f5 {[%emt 00:00:09]} 10. O-O {[%emt 00:00:15]} Nd7 {[%emt 00:00:05]}
11. b4 {[%emt 00:00:51]} Nf6 {[%emt 00:00:08]} 12. Qb3 {[%emt 00:00:23]} Bd7
{[%emt 00:01:40]} 13. a4 {[%emt 00:00:19]} Qe7 {[%emt 00:00:34]} 14. Rac1
{[%emt 00:03:30]} c6 {[%emt 00:00:33]} 15. Rfd1 {[%emt 00:03:17]} Be6 {[%emt
00:01:22]} 16. Nf4 {[%emt 00:00:17]} Bxc4 {[%emt 00:00:11]} 17. Qxc4 {[%emt
00:00:01]} g5 {[%emt 00:00:07]} 18. Nd3 {[%emt 00:00:05]} Ne4 {[%emt 00:00:12]}
19. Nc5 {[%emt 00:01:17]} Rad8 {[%emt 00:01:20]} 20. N3xe4 {[%emt 00:00:27]}
fxe4 {[%emt 00:00:02]} 21. b5 b6 {[%emt 00:01:17]} 22. Na6 {[%emt 00:00:21]}
cxb5 {[%emt 00:00:07]} 23. axb5 {[%emt 00:00:01]} Rd7 {[%emt 00:00:22]} 24. Nb4
{[%emt 00:01:18]} Kh8 {[%emt 00:00:32]} 25. Nc6 {[%emt 00:00:04]} Qd6 {[%emt
00:00:06]} 26. Qb4 {[%emt 00:00:15]} Qg6 {[%emt 00:04:24]} 27. Ne5 {[%emt
00:00:23]} Qd6 {[%emt 00:00:14]} 28. Qxd6 {[%emt 00:00:37]} Rxd6 {[%emt
00:00:01]} 29. Nc6 {[%emt 00:00:02]} Ra8 {[%emt 00:00:09]} 30. Nb4 {[%emt
00:00:32]} Rd7 {[%emt 00:00:11]} 31. Rc4 {[%emt 00:00:17]} Bf8 {[%emt
00:00:04]} 32. Rdc1 {[%emt 00:00:03]} Bxb4 {[%emt 00:00:36]} 33. Rxb4 {[%emt
00:00:01]} a5 34. bxa6 {[%emt 00:00:04]} Rxa6 35. g4 {[%emt 00:00:09]} h5
{[%emt 00:00:38]} 36. h3 {[%emt 00:00:43]} hxg4 {[%emt 00:00:08]} 37. hxg4
{[%emt 00:00:01]} Rd5 {[%emt 00:00:04]} 38. Rc6 {[%emt 00:00:38]} Ra1+ {[%emt
00:00:11]} 39. Kg2 b5 {[%emt 00:00:13]} 40. Rb6 {[%emt 00:00:44]} Ra5 {[%emt
00:00:06]} 41. Rb2 {[%emt 00:00:03]} Kg7 {[%emt 00:00:06]} 42. Rc2 {[%emt
00:00:05]} Ra4 {[%emt 00:00:35]} 43. Rc7 {[%emt 00:00:06]} Rd8 {[%emt
00:00:26]} 44. Rxb5 {[%emt 00:00:08]} Kg6 {[%emt 00:00:03]} 45. Re5 {[%emt
00:00:04]} Ra1 {[%emt 00:00:13]} 46. Rxe4 {[%emt 00:00:04]} Rh8 {[%emt
00:00:04]} 47. Ree7 {[%emt 00:00:03]} Rf8 {[%emt 00:00:09]} 48. Rc6+ {[%emt
00:00:05]} f6 {[%emt 00:00:15]} 49. Rcc7 {[%emt 00:00:04]} Rg8 50. Kf3 {[%emt
00:00:05]} Rg1 {[%emt 00:00:10]} 51. Ra7 {[%emt 00:00:03]} Rd1 {[%emt
00:00:12]} 52. Ra6 {[%emt 00:00:03]} Rd2 {[%emt 00:00:11]} 53. Ree6 {[%emt
00:00:05]} Rf8 {[%emt 00:00:01]} 54. Kg3 {[%emt 00:00:02]} Rd1 {[%emt
00:00:03]} 55. Ra5 {[%emt 00:00:14]} Rg1+ {[%emt 00:00:05]} 56. Kf3 {[%emt
00:00:01]} Rd1 {[%emt 00:00:02]} 57. Rf5 {[%emt 00:00:01]} Rg1 {[%emt
00:00:09]} 58. e4 {[%emt 00:00:07]} Rd1 {[%emt 00:00:02]} 59. d5 {[%emt
00:00:06]} Rd3+ 60. Ke2 {[%emt 00:00:02]} Rb3 {[%emt 00:00:04]} 61. e5 {[%emt
00:00:04]} Rb2+ {[%emt 00:00:04]} 62. Kf3 {[%emt 00:00:02]} Rb3+ {[%emt
00:00:02]} 63. Kg2 Rb4 {[%emt 00:00:02]} 64. Rexf6+ {[%emt 00:00:03]} Rxf6
{[%emt 00:00:01]} 65. Rxf6+ Kg7 66. f3 {[%emt 00:00:05]} Rb2+ {[%emt 00:00:04]}
67. Kg3 {[%emt 00:00:01]} Re2 68. Rf5 {[%emt 00:00:02]} Kg6 {[%emt 00:00:02]}
69. d6 {[%emt 00:00:01]} Rd2 {[%emt 00:00:04]} 70. Rf6+ {[%emt 00:00:07]} Kg7
71. f4 {[%emt 00:00:02]} Rd3+ {[%emt 00:00:01]} 72. Kf2 Rd5 {[%emt 00:00:07]}
73. Ke3 {[%emt 00:00:04]} gxf4+ {[%emt 00:00:02]} 74. Kxf4 {[%emt 00:00:02]}
Rd4+ 75. Kf5 {[%emt 00:00:02]} Rd1 {[%emt 00:00:02]} 76. Ke6 {[%clk 00:15:05]}
{[%emt 00:00:02]} 1-0